Workbook

Sheet Single
A1: Worksheet for Reinforcing Percent Effective at Critical Locations in a Single Cell RCB Culvert
A3: General Input
A5: Maintenance Number: | B5: 0191.0S092
A6: Design Number: | B6: Adair 1065
A7: Date: | B7: 2015-07-30
A8: By: | B8: JSI
A9: Concrete Strength: | B9: 3.5
A10: Reinforcement Strength: | B10: 40
A11: Rating Code: | B11: LFR
A14: Location: Slab - Top - Corner
A16: Bar Size: | B16: 6 | D16: Basic Development Length = | E16: =IF(B11="LRFR",MAX(1.25*BARAREA(B16)*$B$10/SQRT($B$9),0.4*BARDIA(B16)*$B$10),MAX(0.04*BARAREA(B16)*$B$10*1000/SQRT($B$9*1000),0.4*BARDIA(B16)*$B$10)) -> 12
A17: Horiz. Leg Length: | B17: 20 | D17: Top Bar Factor = | E17: =IF(B20-B25-BARDIA(B16)>12,1.4,1) -> 1
A18: Center-to-Center Spacing: | B18: 12 | D18: Epoxy Coated Factor = | E18: =IF(B19="Yes",IF(OR(B18-BARDIA(B16)<6*BARDIA(B16),B25<3*BARDIA(B16)),1.5,IF(B11="LRFR",1.2,1.15)),1) -> 1
A19: Epoxy Coated? | B19: No | D19: Spacing Factor = | E19: =IF(B18>=6,0.8,1) -> 0.8
A20: Slab Thickness: | B20: 12 | D20: Development Length = | E20: =MAX(E16*MIN(E17*E18,1.7)*E19,12) -> 12
A21: Critical Section Location From Outside Face of Wall - | D21: Available Length (Flexure) = | E21: =B17+B24-B22 -> 9.5
A22: Flexure: | B22: 12 | D22: Available Length (Shear) = | E22: =B17+B24-B23 -> -6.2
A23: Shear: | B23: 27.7
A24: Side Clear Cover: | B24: 1.5 | D24: Percent Effective (Flexure) = | E24: =MIN(1,E21/E20) -> 0.7916666667
A25: Top Clear Cover: | B25: 1.5 | D25: Percent Effective (Shear) = | E25: =MIN(1,E22/E20) -> -0.5166666667
A28: Location: Slab - Bottom - Midspan - Exterior Cell
A30: Bar 1 (Full Width) Size: | B30: 8 | D30: Basic Development Length = | E30: =IF(B11="LRFR",IF(B31="None","NA",MAX(1.25*BARAREA(B31)*$B$10/SQRT($B$9),0.4*BARDIA(B31)*$B$10)),IF(B31="None","NA",MAX(0.04*BARAREA(B31)*$B$10*1000/SQRT($B$9*1000),0.4*BARDIA(B31)*$B$10))) -> 10
A31: Bar 2 (Partial Width) Size: | B31: 5 | D31: Top Bar Factor = | E31: =IF(B31="None","NA",1) -> 1
A32: Bar 2 Length from 0.4 Pt. to End: | D32: Epoxy Coated Factor = | E32: =IF(B31="None","NA",IF(B34="Yes",IF(OR(B33/2-BARDIA(B31)<6*BARDIA(B31),B35<3*BARDIA(B31)),1.5,IF(B14="LRFR",1.2,1.15)),1)) -> 1
A33: Bar 1 Center-to-Center Spacing: | B33: 12 | D33: Spacing Factor = | E33: =IF(B31="None","NA",IF(B33/2>=6,0.8,1)) -> 0.8
A34: Epoxy Coated? | B34: No | D34: Development Length = | E34: =IF(B31="None","NA",MAX(E30*MIN(E31*E32,1.7)*E33,12)) -> 12
A35: Bottom Clear Cover: | B35: 2 | D35: Available Length (Flexure) = | E35: =IF(B31="None","NA",B32) -> 0
D37: Percent Effective (Flexure) = | E37: =IF(B31="None",1,MIN(1,(BARAREA(B30)+BARAREA(B31)*E35/E34)/(BARAREA(B30)+BARAREA(B31)))) -> 0.7181818182
A40: Location: Floor - Bottom - Corner
A42: Bar Size: | B42: 5 | D42: Basic Development Length = | E42: =IF(B11="LRFR",MAX(1.25*BARAREA(B42)*$B$10/SQRT($B$9),0.4*BARDIA(B42)*$B$10),MAX(0.04*BARAREA(B42)*$B$10*1000/SQRT($B$9*1000),0.4*BARDIA(B42)*$B$10)) -> 10
A43: Horiz. Leg Length: | B43: 10 | D43: Top Bar Factor = | E43: =IF(B50>12,1.4,1) -> 1
A44: Center-to-Center Spacing: | B44: 12 | D44: Epoxy Coated Factor = | E44: =IF(B45="Yes",IF(OR(B44-BARDIA(B42)<6*BARDIA(B42),B50<3*BARDIA(B42)),1.5,IF(B11="LRFR",1.2,1.15)),1) -> 1
A45: Epoxy Coated? | B45: No | D45: Spacing Factor = | E45: =IF(B44>=6,0.8,1) -> 0.8
A46: Critical Section Location From Outside Face of Wall - | D46: Development Length = | E46: =MAX(E42*MIN(E43*E44,1.7)*E45,12) -> 12
A47: Flexure: | B47: 12 | D47: Available Length (Flexure) = | E47: =B43+B49-B47 -> -0.5
A48: Shear: | B48: 25.6 | D48: Available Length (Shear) = | E48: =B43+B49-B48 -> -14.1
A49: Side Clear Cover: | B49: 1.5
A50: Bottom Clear Cover: | B50: 3.5 | D50: Percent Effective (Flexure) = | E50: =MIN(1,E47/E46) -> -0.04166666667
D51: Percent Effective (Shear) = | E51: =MIN(1,E48/E46) -> -1.175
A54: Location: Floor - Top - Midspan - Exterior Cell
A56: Bar 1 (Full Width) Size: | B56: 8 | D56: Basic Development Length = | E56: =IF(B11="LRFR",IF(B57="None","NA",MAX(1.25*BARAREA(B57)*$B$10/SQRT($B$9),0.4*BARDIA(B57)*$B$10)),IF(B57="None","NA",MAX(0.04*BARAREA(B57)*$B$10*1000/SQRT($B$9*1000),0.4*BARDIA(B57)*$B$10))) -> 10
A57: Bar 2 (Partial Width) Size: | B57: 5 | D57: Top Bar Factor = | E57: =IF(B57="None","NA",IF(B60-B62-BARDIA(B56)>12,1.4,1)) -> 1
A58: Bar 2 Length from 0.4 Pt. to End: | D58: Epoxy Coated Factor = | E58: =IF(B57="None","NA",IF(B61="Yes",IF(OR(B59/2-BARDIA(B57)<6*BARDIA(B57),B62<3*BARDIA(B57)),1.5,IF(B1="LRFR",1.2,1.15)),1)) -> 1
A59: Bar 1 Center-to-Center Spacing: | B59: 12 | D59: Spacing Factor = | E59: =IF(B57="None","NA",IF(B59/2>=6,0.8,1)) -> 0.8
A60: Floor Thickness: | B60: 14 | D60: Development Length = | E60: =IF(B57="None","NA",MAX(E56*MIN(E57*E58,1.7)*E59,12)) -> 12
A61: Epoxy Coated? | B61: No | D61: Available Length (Flexure) = | E61: =IF(B57="None","NA",B58) -> 0
A62: Top Clear Cover: | B62: 1.5
D63: Percent Effective (Flexure) = | E63: =IF(B57="None",1,MIN(1,(BARAREA(B56)+BARAREA(B57)*E61/E60)/(BARAREA(B56)+BARAREA(B57)))) -> 0.7181818182

Sheet Twin
A1: Worksheet for Reinforcing Percent Effective at Critical Locations in a Twin Cell RCB Culvert
A3: General Input
A5: Maintenance Number: | B5: 0191.0S092
A6: Design Number: | B6: Adair 1065
A7: Date: | B7: 2015-07-30
A8: By: | B8: JSI
A9: Concrete Strength: | B9: 3.5
A10: Reinforcement Strength: | B10: 40
A11: Rating Code: | B11: LFR
A14: Location: Slab - Top - Corner
A16: Bar Size: | B16: 6 | D16: Basic Development Length = | E16: =IF(B11="LRFR",MAX(1.25*BARAREA(B16)*$B$10/SQRT($B$9),0.4*BARDIA(B16)*$B$10),MAX(0.04*BARAREA(B16)*$B$10*1000/SQRT($B$9*1000),0.4*BARDIA(B16)*$B$10)) -> 12
A17: Horiz. Leg Length: | B17: 20 | D17: Top Bar Factor = | E17: =IF(B20-B25-BARDIA(B16)>12,1.4,1) -> 1
A18: Center-to-Center Spacing: | B18: 12 | D18: Epoxy Coated Factor = | E18: =IF(B19="Yes",IF(OR(B18-BARDIA(B16)<6*BARDIA(B16),B25<3*BARDIA(B16)),1.5,IF(B11="LRFR",1.2,1.15)),1) -> 1
A19: Epoxy Coated? | B19: No | D19: Spacing Factor = | E19: =IF(B18>=6,0.8,1) -> 0.8
A20: Slab Thickness: | B20: 12 | D20: Development Length = | E20: =MAX(E16*MIN(E17*E18,1.7)*E19,12) -> 12
A21: Critical Section Location From Outside Face of Wall - | D21: Available Length (Flexure) = | E21: =B17+B24-B22 -> 9.5
A22: Flexure: | B22: 12 | D22: Available Length (Shear) = | E22: =B17+B24-B23 -> -6.2
A23: Shear: | B23: 27.7
A24: Side Clear Cover: | B24: 1.5 | D24: Percent Effective (Flexure) = | E24: =MIN(1,E21/E20) -> 0.7916666667
A25: Top Clear Cover: | B25: 1.5 | D25: Percent Effective (Shear) = | E25: =MIN(1,E22/E20) -> -0.5166666667
A29: Location: Slab - Top - Interior Wall - Exterior Cell
A31: Bar 1 (Full Width) Size: | B31: 10 | D31: Basic Development Length = | E31: =IF(B11="LRFR",MAX(1.25*BARAREA(B32)*$B$10/SQRT($B$9),0.4*BARDIA(B32)*$B$10),MAX(0.04*BARAREA(B32)*$B$10*1000/SQRT($B$9*1000),0.4*BARDIA(B32)*$B$10)) -> 10
A32: Bar 2 (Partial Width) Size: | B32: 5 | D32: Top Bar Factor = | E32: =IF(B36-B40-BARDIA(B32)>12,1.4,1) -> 1
A33: Bar 2 Length from CL Wall to End: | B33: 20 | D33: Epoxy Coated Factor = | E33: =IF(B35="Yes",IF(OR(IF(OR(B31="None",B32="None"),B34,B34/2)-BARDIA(B32)<6*BARDIA(B32),B40<3*BARDIA(B32)),1.5,IF(B11="LRFR",1.2,1.15)),1) -> 1
A34: Bar 1 or 2 Center-to-Center Spacing: | B34: 24 | D34: Spacing Factor = | E34: =IF(IF(OR(B31="None",B32="None"),B34,B34/2)>=6,0.8,1) -> 0.8
A35: Epoxy Coated? | B35: No | D35: Development Length = | E35: =MAX(E31*MIN(E32*E33,1.7)*E34,12) -> 12
A36: Slab Thickness: | B36: 12 | D36: Available Length (Flexure) = | E36: =B33-B38 -> 14
A37: Critical Section Location From Centerline of Wall - | D37: Available Length (Shear) = | E37: =B33-B39 -> -1.2
A38: Flexure: | B38: 6
A39: Shear: | B39: 21.2 | D39: Percent Effective (Flexure) = | E39: =IF(B32="None",1,MIN(1,(IF(B31="None",0,BARAREA(B31))+BARAREA(B32)*E36/E35)/(IF(B31="None",0,BARAREA(B31))+BARAREA(B32)))) -> 1
A40: Top Clear Cover: | B40: 1.5 | D40: Percent Effective (Shear) = | E40: =IF(B32="None",1,MIN(1,(IF(B31="None",0,BARAREA(B31))+BARAREA(B32)*E37/E35)/(IF(B31="None",0,BARAREA(B31))+BARAREA(B32)))) -> 0.7841772152
A43: Location: Slab - Bottom - Midspan - Exterior Cell
A45: Bar 1 (Full Width) Size: | B45: 8 | D45: Basic Development Length = | E45: =IF(B11="LRFR",IF(B46="None","NA",MAX(1.25*BARAREA(B46)*$B$10/SQRT($B$9),0.4*BARDIA(B46)*$B$10)),IF(B46="None","NA",MAX(0.04*BARAREA(B46)*$B$10*1000/SQRT($B$9*1000),0.4*BARDIA(B46)*$B$10))) -> 10
A46: Bar 2 (Partial Width) Size: | B46: 5 | D46: Top Bar Factor = | E46: =IF(B46="None","NA",1) -> 1
A47: Bar 2 Length from 0.4 Pt. to End: | D47: Epoxy Coated Factor = | E47: =IF(B46="None","NA",IF(B49="Yes",IF(OR(B48/2-BARDIA(B46)<6*BARDIA(B46),B50<3*BARDIA(B46)),1.5,IF(B14="LRFR",1.2,1.15)),1)) -> 1
A48: Bar 1 Center-to-Center Spacing: | B48: 12 | D48: Spacing Factor = | E48: =IF(B46="None","NA",IF(B48/2>=6,0.8,1)) -> 0.8
A49: Epoxy Coated? | B49: No | D49: Development Length = | E49: =IF(B46="None","NA",MAX(E45*MIN(E46*E47,1.7)*E48,12)) -> 12
A50: Bottom Clear Cover: | B50: 2 | D50: Available Length (Flexure) = | E50: =IF(B46="None","NA",B47) -> 0
D52: Percent Effective (Flexure) = | E52: =IF(B46="None",1,MIN(1,(BARAREA(B45)+BARAREA(B46)*E50/E49)/(BARAREA(B45)+BARAREA(B46)))) -> 0.7181818182
A55: Location: Floor - Bottom - Corner
A57: Bar Size: | B57: 5 | D57: Basic Development Length = | E57: =IF(B11="LRFR",MAX(1.25*BARAREA(B57)*$B$10/SQRT($B$9),0.4*BARDIA(B57)*$B$10),MAX(0.04*BARAREA(B57)*$B$10*1000/SQRT($B$9*1000),0.4*BARDIA(B57)*$B$10)) -> 10
A58: Horiz. Leg Length: | B58: 10 | D58: Top Bar Factor = | E58: =IF(B65>12,1.4,1) -> 1
A59: Center-to-Center Spacing: | B59: 12 | D59: Epoxy Coated Factor = | E59: =IF(B60="Yes",IF(OR(B59-BARDIA(B57)<6*BARDIA(B57),B65<3*BARDIA(B57)),1.5,IF(B11="LRFR",1.2,1.15)),1) -> 1
A60: Epoxy Coated? | B60: No | D60: Spacing Factor = | E60: =IF(B59>=6,0.8,1) -> 0.8
A61: Critical Section Location From Outside Face of Wall - | D61: Development Length = | E61: =MAX(E57*MIN(E58*E59,1.7)*E60,12) -> 12
A62: Flexure: | B62: 12 | D62: Available Length (Flexure) = | E62: =B58+B64-B62 -> -0.5
A63: Shear: | B63: 25.6 | D63: Available Length (Shear) = | E63: =B58+B64-B63 -> -14.1
A64: Side Clear Cover: | B64: 1.5
A65: Bottom Clear Cover: | B65: 3.5 | D65: Percent Effective (Flexure) = | E65: =MIN(1,E62/E61) -> -0.04166666667
D66: Percent Effective (Shear) = | E66: =MIN(1,E63/E61) -> -1.175
A69: Location: Floor - Bottom - Interior Wall - Exterior Cell
A71: Bar 1 (Full Width) Size: | B71: 10 | D71: Basic Development Length = | E71: =IF(B11="LRFR",MAX(1.25*BARAREA(B72)*$B$10/SQRT($B$9),0.4*BARDIA(B72)*$B$10),MAX(0.04*BARAREA(B72)*$B$10*1000/SQRT($B$9*1000),0.4*BARDIA(B72)*$B$10)) -> 27.04493615
A72: Bar 2 (Partial Width) Size: | B72: 9 | D72: Top Bar Factor = | E72: =IF(B80>12,1.4,1) -> 1
A73: Bar 2 Length from CL Wall to End: | B73: 37 | D73: Epoxy Coated Factor = | E73: =IF(B75="Yes",IF(OR(IF(OR(B71="None",B72="None"),B74,B74/2)-BARDIA(B72)<6*BARDIA(B72),B80<3*BARDIA(B72)),1.5,IF(B11="LRFR",1.2,1.15)),1) -> 1.15
A74: Bar 1 or 2 Center-to-Center Spacing: | B74: 24 | D74: Spacing Factor = | E74: =IF(IF(OR(B71="None",B72="None"),B74,B74/2)>=6,0.8,1) -> 0.8
A75: Epoxy Coated? | B75: Yes | D75: Development Length = | E75: =MAX(E71*MIN(E72*E73,1.7)*E74,12) -> 24.88134126
A76: Floor Thickness: | B76: 8 | D76: Available Length (Flexure) = | E76: =B73-B78 -> 35
A77: Critical Section Location From Centerline of Wall - | D77: Available Length (Shear) = | E77: =B73-B79 -> 35
A78: Flexure: | B78: 2
A79: Shear: | B79: 2 | D79: Percent Effective (Flexure) = | E79: =IF(B72="None",1,MIN(1,(IF(B71="None",0,BARAREA(B71))+BARAREA(B72)*E76/E75)/(IF(B71="None",0,BARAREA(B71))+BARAREA(B72)))) -> 1
A80: Bottom Clear Cover: | B80: 3.5 | D80: Percent Effective (Shear) = | E80: =IF(B72="None",1,MIN(1,(IF(B71="None",0,BARAREA(B71))+BARAREA(B72)*E77/E75)/(IF(B71="None",0,BARAREA(B71))+BARAREA(B72)))) -> 1
A83: Location: Floor - Top - Midspan - Exterior Cell
A85: Bar 1 (Full Width) Size: | B85: 8 | D85: Basic Development Length = | E85: =IF(B11="LRFR",IF(B86="None","NA",MAX(1.25*BARAREA(B86)*$B$10/SQRT($B$9),0.4*BARDIA(B86)*$B$10)),IF(B86="None","NA",MAX(0.04*BARAREA(B86)*$B$10*1000/SQRT($B$9*1000),0.4*BARDIA(B86)*$B$10))) -> 10
A86: Bar 2 (Partial Width) Size: | B86: 5 | D86: Top Bar Factor = | E86: =IF(B86="None","NA",IF(B89-B91-BARDIA(B85)>12,1.4,1)) -> 1
A87: Bar 2 Length from 0.4 Pt. to End: | D87: Epoxy Coated Factor = | E87: =IF(B86="None","NA",IF(B90="Yes",IF(OR(B88/2-BARDIA(B86)<6*BARDIA(B86),B91<3*BARDIA(B86)),1.5,IF(B1="LRFR",1.2,1.15)),1)) -> 1
A88: Bar 1 Center-to-Center Spacing: | B88: 12 | D88: Spacing Factor = | E88: =IF(B86="None","NA",IF(B88/2>=6,0.8,1)) -> 0.8
A89: Floor Thickness: | B89: 14 | D89: Development Length = | E89: =IF(B86="None","NA",MAX(E85*MIN(E86*E87,1.7)*E88,12)) -> 12
A90: Epoxy Coated? | B90: No | D90: Available Length (Flexure) = | E90: =IF(B86="None","NA",B87) -> 0
A91: Top Clear Cover: | B91: 1.5
D92: Percent Effective (Flexure) = | E92: =IF(B86="None",1,MIN(1,(BARAREA(B85)+BARAREA(B86)*E90/E89)/(BARAREA(B85)+BARAREA(B86)))) -> 0.7181818182

Sheet Triple
A1: Worksheet for Reinforcing Percent Effective at Critical Locations in a Triple Cell RCB Culvert
A2: *CALCULATIONS FOR ORIGINAL PORTION OF CULVERT*
A3: General Input
A5: Maintenance Number: | B5: 3155.9S052
A6: Design Number: | B6: Dubuque 164
A7: Date: | B7: 2015-08-21
A8: By: | B8: TJC
A9: Concrete Strength: | B9: 3.5
A10: Reinforcement Strength: | B10: 40
A11: Rating Code: | B11: LFR
A14: Location: Slab - Top - Corner
A16: Bar Size: | B16: 8 | D16: Basic Development Length = | E16: =IF(B11="LRFR",MAX(1.25*BARAREA(B16)*$B$10/SQRT($B$9),0.4*BARDIA(B16)*$B$10),MAX(0.04*BARAREA(B16)*$B$10*1000/SQRT($B$9*1000),0.4*BARDIA(B16)*$B$10)) -> 21.36549956
A17: Horiz. Leg Length: | B17: 37.5 | D17: Top Bar Factor = | E17: =IF(B20-B25-BARDIA(B16)>12,1.4,1) -> 1.4
A18: Center-to-Center Spacing: | B18: 10 | D18: Epoxy Coated Factor = | E18: =IF(B19="Yes",IF(OR(B18-BARDIA(B16)<6*BARDIA(B16),B25<3*BARDIA(B16)),1.5,1.2),1) -> 1
A19: Epoxy Coated? | B19: No | D19: Spacing Factor = | E19: =IF(B18>=6,0.8,1) -> 0.8
A20: Slab Thickness: | B20: 18 | D20: Development Length = | E20: =MAX(E16*MIN(E17*E18,1.7)*E19,12) -> 23.92935951
A21: Critical Section Location From Outside Face of Wall - | D21: Available Length (Flexure) = | E21: =B17+B24-B22 -> 27
A22: Flexure: | B22: 12 | D22: Available Length (Shear) = | E22: =B17+B24-B23 -> 2.5
A23: Shear: | B23: 36.5
A24: Side Clear Cover: | B24: 1.5 | D24: Percent Effective (Flexure) = | E24: =MIN(1,E21/E20) -> 1
A25: Top Clear Cover: | B25: 1.5 | D25: Percent Effective (Shear) = | E25: =MIN(1,E22/E20) -> 0.1044741711
A28: Location: Slab - Top - Interior Wall - Exterior Cell
A30: Bar 1 (Full Width) Size: | B30: None | D30: Basic Development Length = | E30: =IF(B11="LRFR",MAX(1.25*BARAREA(B31)*$B$10/SQRT($B$9),0.4*BARDIA(B31)*$B$10),MAX(0.04*BARAREA(B31)*$B$10*1000/SQRT($B$9*1000),0.4*BARDIA(B31)*$B$10)) -> 27.04493615
A31: Bar 2 (Partial Width) Size: | B31: 9 | D31: Top Bar Factor = | E31: =IF(B35-B39-BARDIA(B31)>12,1.4,1) -> 1.4
A32: Bar 2 Length from CL Wall to End: | B32: 48 | D32: Epoxy Coated Factor = | E32: =IF(B34="Yes",IF(OR(IF(OR(B30="None",B31="None"),B33,B33/2)-BARDIA(B31)<6*BARDIA(B31),B39<3*BARDIA(B31)),1.5,IF(#REF!="LRFR",1.2,1.15)),1) -> 1
A33: Bar 1 or 2 Center-to-Center Spacing: | B33: 10 | D33: Spacing Factor = | E33: =IF(IF(OR(B30="None",B31="None"),B33,B33/2)>=6,0.8,1) -> 0.8
A34: Epoxy Coated? | B34: No | D34: Development Length = | E34: =MAX(E30*MIN(E31*E32,1.7)*E33,12) -> 30.29032849
A35: Slab Thickness: | B35: 18 | D35: Available Length (Flexure) = | E35: =B32-B37 -> 42
A36: Critical Section Location From Centerline of Wall - | D36: Available Length (Shear) = | E36: =B32-B38 -> 17.7
A37: Flexure: | B37: 6
A38: Shear: | B38: 30.3 | D38: Percent Effective (Flexure) = | E38: =IF(B31="None",1,MIN(1,(IF(B30="None",0,BARAREA(B30))+BARAREA(B31)*E35/E34)/(IF(B30="None",0,BARAREA(B30))+BARAREA(B31)))) -> 1
A39: Top Clear Cover: | B39: 1.5 | D39: Percent Effective (Shear) = | E39: =IF(B31="None",1,MIN(1,(IF(B30="None",0,BARAREA(B30))+BARAREA(B31)*E36/E34)/(IF(B30="None",0,BARAREA(B30))+BARAREA(B31)))) -> 0.5843449339
A42: Location: Slab - Top - Interior Wall - Interior Cell
A44: Bar 1 (Full Width) Size: | B44: None | D44: Basic Development Length = | E44: =IF(B11="LRFR",MAX(1.25*BARAREA(B45)*$B$10/SQRT($B$9),0.4*BARDIA(B45)*$B$10),MAX(0.04*BARAREA(B45)*$B$10*1000/SQRT($B$9*1000),0.4*BARDIA(B45)*$B$10)) -> 27.04493615
A45: Bar 2 (Partial Width) Size: | B45: 9 | D45: Top Bar Factor = | E45: =IF(B49-B53-BARDIA(B45)>12,1.4,1) -> 1.4
A46: Bar 2 Length from CL Wall to End: | B46: 48 | D46: Epoxy Coated Factor = | E46: =IF(B48="Yes",IF(OR(IF(OR(B44="None",B45="None"),B47,B47/2)-BARDIA(B45)<6*BARDIA(B45),B53<3*BARDIA(B45)),1.5,IF(#REF!="LRFR",1.2,1.15)),1) -> 1
A47: Bar 1 or 2 Center-to-Center Spacing: | B47: 10 | D47: Spacing Factor = | E47: =IF(IF(OR(B44="None",B45="None"),B47,B47/2)>=6,0.8,1) -> 0.8
A48: Epoxy Coated? | B48: No | D48: Development Length = | E48: =MAX(E44*MIN(E45*E46,1.7)*E47,12) -> 30.29032849
A49: Slab Thickness: | B49: 18 | D49: Available Length (Flexure) = | E49: =B46-B51 -> 42
A50: Critical Section Location From Centerline of Wall - | D50: Available Length (Shear) = | E50: =B46-B52 -> 17.7
A51: Flexure: | B51: 6
A52: Shear: | B52: 30.3 | D52: Percent Effective (Flexure) = | E52: =IF(B45="None",1,MIN(1,(IF(B44="None",0,BARAREA(B44))+BARAREA(B45)*E49/E48)/(IF(B44="None",0,BARAREA(B44))+BARAREA(B45)))) -> 1
A53: Top Clear Cover: | B53: 1.5 | D53: Percent Effective (Shear) = | E53: =IF(B45="None",1,MIN(1,(IF(B44="None",0,BARAREA(B44))+BARAREA(B45)*E50/E48)/(IF(B44="None",0,BARAREA(B44))+BARAREA(B45)))) -> 0.5843449339
A56: Location: Slab - Bottom - Midspan - Exterior Cell
A58: Bar 1 (Full Width) Size: | B58: 6 | D58: Basic Development Length = | E58: =IF(B11="LRFR",IF(B59="None","NA",MAX(1.25*BARAREA(B59)*$B$10/SQRT($B$9),0.4*BARDIA(B59)*$B$10)),IF(B59="None","NA",MAX(0.04*BARAREA(B59)*$B$10*1000/SQRT($B$9*1000),0.4*BARDIA(B59)*$B$10))) -> 12
A59: Bar 2 (Partial Width) Size: | B59: 6 | D59: Top Bar Factor = | E59: =IF(B59="None","NA",1) -> 1
A60: Bar 2 Length from 0.4 Pt. to End: | B60: 39 | D60: Epoxy Coated Factor = | E60: =IF(B59="None","NA",IF(B62="Yes",IF(OR(B61/2-BARDIA(B59)<6*BARDIA(B59),B63<3*BARDIA(B59)),1.5,IF(B11="LRFR",1.2,1.15)),1)) -> 1
A61: Bar 1 Center-to-Center Spacing: | B61: 10 | D61: Spacing Factor = | E61: =IF(B59="None","NA",IF(B61/2>=6,0.8,1)) -> 1
A62: Epoxy Coated? | B62: No | D62: Development Length = | E62: =IF(B59="None","NA",MAX(E58*MIN(E59*E60,1.7)*E61,12)) -> 12
A63: Bottom Clear Cover: | B63: 1.5 | D63: Available Length (Flexure) = | E63: =IF(B59="None","NA",B60) -> 39
D65: Percent Effective (Flexure) = | E65: =IF(B59="None",1,MIN(1,(BARAREA(B58)+BARAREA(B59)*E63/E62)/(BARAREA(B58)+BARAREA(B59)))) -> 1
A68: Location: Slab - Bottom - Midspan - Interior Cell
A70: Bar 1 (Full Width) Size: | B70: 6 | D70: Basic Development Length = | E70: =IF(B11="LRFR",IF(B71="None","NA",MAX(1.25*BARAREA(B71)*$B$10/SQRT($B$9),0.4*BARDIA(B71)*$B$10)),IF(B71="None","NA",MAX(0.04*BARAREA(B71)*$B$10*1000/SQRT($B$9*1000),0.4*BARDIA(B71)*$B$10))) -> NA
A71: Bar 2 (Partial Width) Size: | B71: None | D71: Top Bar Factor = | E71: =IF(B71="None","NA",1) -> NA
A72: Bar 2 Length from 0.5 Pt. to End: | D72: Epoxy Coated Factor = | E72: =IF(B71="None","NA",IF(B74="Yes",IF(OR(B73/2-BARDIA(B71)<6*BARDIA(B71),B75<3*BARDIA(B71)),1.5,IF(B11="LRFR",1.2,1.15)),1)) -> NA
A73: Bar 1 Center-to-Center Spacing: | D73: Spacing Factor = | E73: =IF(B71="None","NA",IF(B73/2>=6,0.8,1)) -> NA
A74: Epoxy Coated? | B74: No | D74: Development Length = | E74: =IF(B71="None","NA",MAX(E70*MIN(E71*E72,1.7)*E73,12)) -> NA
A75: Bottom Clear Cover: | D75: Available Length (Flexure) = | E75: =IF(B71="None","NA",B72) -> NA
D77: Percent Effective (Flexure) = | E77: =IF(B71="None",1,MIN(1,(BARAREA(B70)+BARAREA(B71)*E75/E74)/(BARAREA(B70)+BARAREA(B71)))) -> 1
A80: Location: Floor - Bottom - Corner
A82: Bar Size: | B82: 8 | D82: Basic Development Length = | E82: =IF(B11="LRFR",MAX(1.25*BARAREA(B82)*$B$10/SQRT($B$9),0.4*BARDIA(B82)*$B$10),MAX(0.04*BARAREA(B82)*$B$10*1000/SQRT($B$9*1000),0.4*BARDIA(B82)*$B$10)) -> 21.36549956
A83: Horiz. Leg Length: | B83: 37.5 | D83: Top Bar Factor = | E83: =IF(B90>12,1.4,1) -> 1
A84: Center-to-Center Spacing: | B84: 10 | D84: Epoxy Coated Factor = | E84: =IF(B85="Yes",IF(OR(B84-BARDIA(B82)<6*BARDIA(B82),B90<3*BARDIA(B82)),1.5,IF(B11="LRFR",1.2,1.15)),1) -> 1
A85: Epoxy Coated? | B85: No | D85: Spacing Factor = | E85: =IF(B84>=6,0.8,1) -> 0.8
A86: Critical Section Location From Outside Face of Wall - | D86: Development Length = | E86: =MAX(E82*MIN(E83*E84,1.7)*E85,12) -> 17.09239965
A87: Flexure: | B87: 12 | D87: Available Length (Flexure) = | E87: =B83+B89-B87 -> 27
A88: Shear: | B88: 31.5 | D88: Available Length (Shear) = | E88: =B83+B89-B88 -> 7.5
A89: Side Clear Cover: | B89: 1.5
A90: Bottom Clear Cover: | B90: 3.5 | D90: Percent Effective (Flexure) = | E90: =MIN(1,E87/E86) -> 1
D91: Percent Effective (Shear) = | E91: =MIN(1,E88/E86) -> 0.4387915187
A94: Location: Floor - Bottom - Interior Wall - Exterior Cell
A96: Bar 1 (Full Width) Size: | B96: None | D96: Basic Development Length = | E96: =IF(B11="LRFR",MAX(1.25*BARAREA(B97)*$B$10/SQRT($B$9),0.4*BARDIA(B97)*$B$10),MAX(0.04*BARAREA(B97)*$B$10*1000/SQRT($B$9*1000),0.4*BARDIA(B97)*$B$10)) -> 21.36549956
A97: Bar 2 (Partial Width) Size: | B97: 8 | D97: Top Bar Factor = | E97: =IF(B105>12,1.4,1) -> 1
A98: Bar 2 Length from CL Wall to End: | B98: 48 | D98: Epoxy Coated Factor = | E98: =IF(B100="Yes",IF(OR(IF(OR(B96="None",B97="None"),B99,B99/2)-BARDIA(B97)<6*BARDIA(B97),B105<3*BARDIA(B97)),1.5,IF(#REF!="LRFR",1.2,1.15)),1) -> 1
A99: Bar 1 or 2 Center-to-Center Spacing: | B99: 10 | D99: Spacing Factor = | E99: =IF(IF(OR(B96="None",B97="None"),B99,B99/2)>=6,0.8,1) -> 0.8
A100: Epoxy Coated? | B100: No | D100: Development Length = | E100: =MAX(E96*MIN(E97*E98,1.7)*E99,12) -> 17.09239965
A101: Floor Thickness: | B101: 20 | D101: Available Length (Flexure) = | E101: =B98-B103 -> 42
A102: Critical Section Location From Centerline of Wall - | D102: Available Length (Shear) = | E102: =B98-B104 -> 22.5
A103: Flexure: | B103: 6
A104: Shear: | B104: 25.5 | D104: Percent Effective (Flexure) = | E104: =IF(B97="None",1,MIN(1,(IF(B96="None",0,BARAREA(B96))+BARAREA(B97)*E101/E100)/(IF(B96="None",0,BARAREA(B96))+BARAREA(B97)))) -> 1
A105: Bottom Clear Cover: | B105: 3.5 | D105: Percent Effective (Shear) = | E105: =IF(B97="None",1,MIN(1,(IF(B96="None",0,BARAREA(B96))+BARAREA(B97)*E102/E100)/(IF(B96="None",0,BARAREA(B96))+BARAREA(B97)))) -> 1
A108: Location: Floor - Bottom - Interior Wall - Interior Cell
A110: Bar 1 (Full Width) Size: | B110: None | D110: Basic Development Length = | E110: =IF(B11="LRFR",MAX(1.25*BARAREA(B111)*$B$10/SQRT($B$9),0.4*BARDIA(B111)*$B$10),MAX(0.04*BARAREA(B111)*$B$10*1000/SQRT($B$9*1000),0.4*BARDIA(B111)*$B$10)) -> 21.36549956
A111: Bar 2 (Partial Width) Size: | B111: 8 | D111: Top Bar Factor = | E111: =IF(B119>12,1.4,1) -> 1
A112: Bar 2 Length from CL Wall to End: | B112: 48 | D112: Epoxy Coated Factor = | E112: =IF(B114="Yes",IF(OR(IF(OR(B110="None",B111="None"),B113,B113/2)-BARDIA(B111)<6*BARDIA(B111),B119<3*BARDIA(B111)),1.5,IF(#REF!="LRFR",1.2,1.15)),1) -> 1
A113: Bar 1 or 2 Center-to-Center Spacing: | B113: 10 | D113: Spacing Factor = | E113: =IF(IF(OR(B110="None",B111="None"),B113,B113/2)>=6,0.8,1) -> 0.8
A114: Epoxy Coated? | B114: No | D114: Development Length = | E114: =MAX(E110*MIN(E111*E112,1.7)*E113,12) -> 17.09239965
A115: Floor Thickness: | B115: 20 | D115: Available Length (Flexure) = | E115: =B112-B117 -> 42
A116: Critical Section Location From Centerline of Wall - | D116: Available Length (Shear) = | E116: =B112-B118 -> 22.5
A117: Flexure: | B117: 6
A118: Shear: | B118: 25.5 | D118: Percent Effective (Flexure) = | E118: =IF(B111="None",1,MIN(1,(IF(B110="None",0,BARAREA(B110))+BARAREA(B111)*E115/E114)/(IF(B110="None",0,BARAREA(B110))+BARAREA(B111)))) -> 1
A119: Bottom Clear Cover: | B119: 3.5 | D119: Percent Effective (Shear) = | E119: =IF(B111="None",1,MIN(1,(IF(B110="None",0,BARAREA(B110))+BARAREA(B111)*E116/E114)/(IF(B110="None",0,BARAREA(B110))+BARAREA(B111)))) -> 1
A122: Location: Floor - Top - Midspan - Exterior Cell
A124: Bar 1 (Full Width) Size: | B124: 6 | D124: Basic Development Length = | E124: =IF(B11="LRFR",IF(B125="None","NA",MAX(1.25*BARAREA(B125)*$B$10/SQRT($B$9),0.4*BARDIA(B125)*$B$10)),IF(B125="None","NA",MAX(0.04*BARAREA(B125)*$B$10*1000/SQRT($B$9*1000),0.4*BARDIA(B125)*$B$10))) -> 12
A125: Bar 2 (Partial Width) Size: | B125: 6 | D125: Top Bar Factor = | E125: =IF(B125="None","NA",IF(B128-B130-BARDIA(B124)>12,1.4,1)) -> 1.4
A126: Bar 2 Length from 0.4 Pt. to End: | B126: 44 | D126: Epoxy Coated Factor = | E126: =IF(B125="None","NA",IF(B129="Yes",IF(OR(B127/2-BARDIA(B125)<6*BARDIA(B125),B130<3*BARDIA(B125)),1.5,IF(B11="LRFR",1.2,1.15)),1)) -> 1
A127: Bar 1 Center-to-Center Spacing: | B127: 10 | D127: Spacing Factor = | E127: =IF(B125="None","NA",IF(B127/2>=6,0.8,1)) -> 1
A128: Floor Thickness: | B128: 20 | D128: Development Length = | E128: =IF(B125="None","NA",MAX(E124*MIN(E125*E126,1.7)*E127,12)) -> 16.8
A129: Epoxy Coated? | B129: No | D129: Available Length (Flexure) = | E129: =IF(B125="None","NA",B126) -> 44
A130: Top Clear Cover: | B130: 1.5
D131: Percent Effective (Flexure) = | E131: =IF(B125="None",1,MIN(1,(BARAREA(B124)+BARAREA(B125)*E129/E128)/(BARAREA(B124)+BARAREA(B125)))) -> 1
A134: Location: Floor - Top - Midspan - Interior Cell
A136: Bar 1 (Full Width) Size: | B136: 6 | D136: Basic Development Length = | E136: =IF(B11="LRFR",IF(B137="None","NA",MAX(1.25*BARAREA(B137)*$B$10/SQRT($B$9),0.4*BARDIA(B137)*$B$10)),IF(B137="None","NA",MAX(0.04*BARAREA(B137)*$B$10*1000/SQRT($B$9*1000),0.4*BARDIA(B137)*$B$10))) -> NA
A137: Bar 2 (Partial Width) Size: | B137: None | D137: Top Bar Factor = | E137: =IF(B137="None","NA",IF(B140-B142-BARDIA(B136)>12,1.4,1)) -> NA
A138: Bar 2 Length from 0.5 Pt. to End: | D138: Epoxy Coated Factor = | E138: =IF(B137="None","NA",IF(B141="Yes",IF(OR(B139/2-BARDIA(B137)<6*BARDIA(B137),B142<3*BARDIA(B137)),1.5,IF(B11="LRFR",1.2,1.15)),1)) -> NA
A139: Bar 1 Center-to-Center Spacing: | D139: Spacing Factor = | E139: =IF(B137="None","NA",IF(B139/2>=6,0.8,1)) -> NA
A140: Floor Thickness: | D140: Development Length = | E140: =IF(B137="None","NA",MAX(E136*MIN(E137*E138,1.7)*E139,12)) -> NA
A141: Epoxy Coated? | D141: Available Length (Flexure) = | E141: =IF(B137="None","NA",B138) -> NA
A142: Top Clear Cover:
D143: Percent Effective (Flexure) = | E143: =IF(B137="None",1,MIN(1,(BARAREA(B136)+BARAREA(B137)*E141/E140)/(BARAREA(B136)+BARAREA(B137)))) -> 1
